bitfinex-derivatives/quotes_ETHF0:USTF0_20210702
["timestamp","ask_amount","ask_price","bid_price","bid_amount"]
[1625242307762,5.92147,2104.1,2103.4,2.20527]
[1625242309267,5.92147,2104.1,2103.4,6.96427]
[1625242309719,5.92147,2104.1,2103.8,2.20527]
[1625242311721,2.20527,2104.0,2103.8,2.20527]
[1625242314385,2.20527,2104.1,2103.8,2.20527]
[1625242314486,2.20527,2104.1,2103.8,5.78197]
[1625242315739,2.20527,2104.1,2104.0,2.20527]
[1625242317944,2.20527,2104.5,2104.0,2.20527]
[1625242319697,2.20527,2104.5,2104.4,2.20527]
[1625242323068,0.58967,2104.5,2104.4,2.20527]
[1625242323272,14.3507,2105.5,2104.4,2.20527]
[1625242323621,1.0,2106.3,2104.4,2.20527]
[1625242323772,2.20527,2105.7,2105.2,2.20527]
[1625242323870,2.20527,2105.7,2105.2,5.49947]
[1625242324529,2.20527,2105.9,2105.2,5.49947]
[1625242325786,2.20527,2105.9,2105.8,4.41054]
[1625242325887,2.20527,2105.9,2105.8,7.43594]
[1625242330350,2.20527,2105.9,2104.3,1.0]
[1625242330498,5.87757,2105.9,2103.8,1.0]
[1625242330597,5.87757,2105.9,2103.4,4.759]
[1625242330703,10.87757,2105.9,2103.4,4.759]
[1625242331105,45.3573,2104.8,2103.4,4.759]
[1625242331205,2.9993,2104.8,2103.4,4.759]
[1625242331703,2.9993,2104.8,2103.5,55.3988]
[1625242331854,2.9993,2104.8,2104.7,2.20527]
[1625242332605,2.20527,2104.9,2104.7,2.20527]
[1625242333757,4.41054,2104.9,2104.7,2.20527]
[1625242334408,4.41054,2104.9,2104.7,5.09327]
[1625242335824,4.41054,2104.9,2104.7,2.20527]
[1625242337039,4.41054,2104.9,2103.6,14.4579]
[1625242337139,7.67404,2104.9,2103.6,14.4579]
[1625242337738,7.67404,2104.9,2104.1,2.20527]
[1625242337739,2.20527,2104.2,2104.1,2.20527]
[1625242338141,3.2635,2104.9,2104.1,2.20527]
[1625242338691,52.5812,2104.6,2104.1,2.20527]
[1625242339847,4.41054,2104.2,2104.1,2.20527]
[1625242339946,6.86834,2104.2,2104.1,2.20527]
[1625242342051,4.41054,2104.2,2104.1,2.20527]
[1625242345707,1.0,2105.5,2104.1,2.20527]
[1625242345807,2.20527,2104.6,2104.1,2.20527]
[1625242347863,2.20527,2104.2,2104.1,2.20527]
[1625242347962,53.86807,2104.2,2104.1,2.20527]
[1625242348368,53.86807,2104.2,2103.9,2.20527]
[1625242348475,53.86807,2104.2,2102.6,21.6138]
[1625242348575,53.86807,2104.2,2102.6,20.6138]
[1625242349881,2.20527,2103.6,2103.5,2.20527]
[1625242350732,2.20527,2103.6,2103.5,2.19927]
[1625242351933,4.41054,2103.6,2103.5,2.19927]
[1625242352804,69.8337,2104.8,2103.5,2.19927]
[1625242353856,2.20527,2103.9,2103.8,2.20527]
[1625242357960,2.20527,2103.9,2103.5,2.19927]
[1625242359917,2.20527,2103.6,2103.5,2.19927]
[1625242361319,2.20527,2103.6,2102.8,4.759]
[1625242361972,2.20527,2103.3,2102.9,2.20527]
[1625242364032,2.20527,2103.3,2103.2,2.20527]
[1625242365493,2.20527,2103.3,2103.2,4.77817]
[1625242365894,2.20527,2103.6,2103.2,4.77817]
[1625242365993,2.20527,2103.6,2103.2,6.98344]
[1625242366795,2.20527,2103.9,2103.2,6.98344]
[1625242366895,15.2658,2104.8,2103.2,6.98344]
[1625242366996,15.2658,2104.8,2103.3,5.0]
[1625242367149,15.2658,2104.8,2103.4,1.95374659]
[1625242367401,15.2658,2104.8,2103.3,1.95376319]
[1625242367701,15.2658,2104.8,2103.4,1.95363497]
[1625242367949,2.20527,2104.5,2104.1,2.20527]
[1625242369206,53.8825,2104.2,2104.1,2.20527]
[1625242369307,56.4881,2104.2,2104.1,2.20527]
[1625242369857,2.6056,2104.2,2104.1,2.20527]
[1625242370007,4.81087,2104.2,2104.1,2.20527]
[1625242370860,2.20527,2104.2,2104.1,2.20527]
[1625242371613,4.3596,2105.3,2104.1,2.20527]
[1625242371767,3.3596,2105.3,2104.1,5.26967]
[1625242371967,2.20527,2105.1,2104.9,2.20527]
[1625242372064,2.20527,2105.1,2104.7,2.20527]
[1625242373968,2.20527,2104.8,2104.7,4.41054]
[1625242377272,1.94028033,2105.7,2104.7,4.41054]
[1625242377373,1.94028033,2105.7,2104.7,7.76304]
[1625242377473,1.94015101,2105.9,2104.7,7.76304]
[1625242377824,14.4415,2106.1,2104.7,7.76304]
[1625242377921,14.4415,2106.1,2104.8,55.6377]
[1625242378072,2.20527,2106.0,2105.8,2.20527]
[1625242378171,2.20527,2106.0,2105.8,5.42157]
[1625242384870,1.93501778,2107.0,2105.8,5.42157]
[1625242385066,15.5599,2107.2,2105.8,5.42157]
[1625242386071,15.5599,2107.2,2107.1,4.41054]
[1625242386370,2.20527,2107.3,2107.1,4.41054]
[1625242389227,2.20527,2107.6,2107.1,4.41054]
[1625242392083,2.20527,2107.6,2107.5,2.20527]
[1625242395650,2.20527,2107.6,2106.3,1.0]
[1625242395753,4.99417,2107.6,2105.8,14.7081]
[1625242396102,2.20527,2106.9,2106.8,2.20527]
[1625242396757,51.9701,2107.7,2106.8,2.20527]
[1625242397757,9.86426652,2108.1,2106.8,2.20527]
[1625242397858,4.86426652,2108.1,2106.8,2.20527]
[1625242398162,2.20527,2107.3,2107.1,2.20527]
[1625242400157,4.41054,2107.3,2107.1,2.20527]
[1625242400258,4.41054,2107.3,2106.8,2.20527]
[1625242402216,2.20527,2107.3,2107.2,2.20527]
[1625242412274,2.20527,2107.7,2107.2,2.20527]
[1625242413077,2.20527,2107.7,2107.4,41.979]
[1625242414185,2.20527,2107.7,2107.4,44.2944]
[1625242414287,2.20527,2107.7,2107.6,2.20527]
[1625242415743,2.20527,2108.1,2107.6,2.20527]
[1625242416244,2.20527,2108.1,2108.0,2.20527]
[1625242416343,2.20527,2108.1,2108.0,5.91287]
[1625242416447,1.0,2109.3,2108.0,5.91287]
[1625242416794,1.1,2109.8,2108.0,5.91287]
[1625242416894,1.3737316,2109.9,2108.0,6.91287]
[1625242416995,1.3737316,2109.9,2108.3,58.3218]
[1625242417597,15.1824,2110.0,2108.3,58.3218]
[1625242418310,2.20527,2109.9,2109.2,2.20527]
[1625242422320,4.41054,2109.3,2109.2,2.20527]
[1625242422671,2.7136,2109.7,2109.2,2.20527]
[1625242423122,3.652,2109.7,2109.2,2.20527]
[1625242423372,2.7136,2109.7,2109.2,2.20527]
[1625242423975,15.1824,2110.0,2109.2,4.99747]
[1625242424327,17.38767,2110.0,2109.9,4.41054]
[1625242424622,2.20527,2110.0,2109.9,4.41054]
[1625242424772,2.20527,2110.0,2109.9,56.15654]
[1625242424973,2.20527,2110.0,2109.9,53.95127]
[1625242425175,2.20527,2110.0,2109.9,2.20527]
[1625242426327,2.20527,2110.0,2109.2,2.7922]
[1625242426476,2.20527,2110.0,2109.4,2.20527]
[1625242428693,2.20527,2110.0,2109.2,2.20527]
[1625242430493,2.20527,2110.0,2109.2,4.41054]
[1625242432398,2.20527,2110.0,2109.5,2.20527]
[1625242433049,2.20527,2110.0,2109.2,2.20527]
[1625242433148,10.40907,2110.0,2109.2,2.20527]
[1625242433300,10.40907,2110.0,2108.5,14.8184]
[1625242433657,59.2602,2108.9,2108.5,14.8184]
[1625242433750,62.0268,2108.9,2106.0,0.9528]
[1625242433862,62.0268,2108.9,2106.6,14.4396]
[1625242434164,63.0268,2108.9,2106.7,5.0]
[1625242434463,2.20527,2108.6,2108.0,2.20527]
[1625242436466,2.20527,2108.6,2108.5,4.41054]
[1625242436566,2.20527,2108.6,2108.5,2.20527]
[1625242438321,2.20527,2108.9,2108.5,2.20527]
[1625242440626,2.20527,2108.9,2108.5,5.35687]
[1625242441778,16.6538,2109.8,2108.5,5.35687]
[1625242441880,1.1,2110.1,2108.6,5.0]
[1625242442030,1.92120913,2111.4,2108.6,5.9571]
[1625242442129,15.5382,2111.2,2108.7,15.253]
[1625242442230,15.5382,2111.2,2108.8,6.0]
[1625242442433,15.5382,2111.2,2108.8,23.259462]
[1625242442533,2.20527,2110.5,2110.4,2.20527]
[1625242442635,2.20527,2110.5,2110.4,5.64517]
[1625242442882,15.5382,2111.2,2110.4,5.64517]
[1625242443183,1.0,2111.9,2110.4,5.64517]
[1625242443286,1.37487405,2112.1,2110.4,5.64517]
[1625242443583,1.37487405,2112.1,2110.5,5.0]
[1625242443683,1.37487405,2112.1,2111.6,53.6246]
[1625242443785,1.37487405,2112.1,2111.6,55.9259]
[1625242443884,5.49862031,2113.0,2111.6,55.9259]
[1625242443885,1.374004,2112.9,2111.6,55.9259]
[1625242444392,2.37388513,2113.4,2111.6,55.9259]
[1625242444488,2.20527,2112.4,2112.3,2.20527]
[1625242444588,2.20527,2112.4,2112.3,5.96807]
[1625242445088,3.57150522,2114.2,2112.3,5.96807]
[1625242445089,1.0,2113.7,2112.3,5.96807]
[1625242445189,1.37344951,2114.1,2112.3,5.96807]
[1625242445441,2.47341479,2114.2,2112.3,5.96807]
[1625242445794,3.40731479,2114.2,2112.3,5.96807]
[1625242445890,1.1,2114.2,2112.3,5.96807]
[1625242446491,2.20527,2113.4,2113.0,2.20527]
[1625242446893,2.20527,2113.4,2113.0,1.0844409]
[1625242446992,2.20527,2113.4,2112.8,2.20527]
[1625242447093,2.20527,2113.4,2108.5,3.1516]
[1625242447192,2.20527,2113.4,2110.5,15.3587]
[1625242447294,1.0,2113.3,2110.5,15.3587]
[1625242447598,1.0,2113.3,2110.6,1.0]
[1625242447696,1.0,2113.3,2111.3,44.2433]
[1625242447800,2.20527,2113.4,2111.3,44.2433]
[1625242448350,1.1,2113.3,2111.3,44.2433]
[1625242448500,1.1,2113.3,2112.1,2.20527]
[1625242448501,2.20527,2112.6,2112.1,2.20527]
[1625242450500,2.20527,2112.6,2112.5,2.20527]
[1625242452005,2.20527,2112.6,2111.3,1.0]
[1625242452103,5.01427,2112.6,2110.5,15.3587]
[1625242452603,2.20527,2111.5,2111.1,2.20527]
[1625242453105,5.45947,2111.7,2111.1,2.20527]
[1625242454926,2.20527,2111.7,2111.1,2.20527]
[1625242456627,4.41054,2111.2,2111.1,2.20527]
[1625242456830,2.7411,2111.7,2111.1,2.20527]
[1625242458632,4.41054,2111.2,2111.1,2.20527]
[1625242458741,7.71754,2111.2,2111.1,2.20527]
[1625242459145,7.71754,2111.2,2110.9,2.20527]
[1625242459348,7.71754,2111.2,2110.5,15.3587]
[1625242460650,4.41054,2110.6,2110.5,15.3587]
[1625242460800,2.20527,2110.6,2110.1,2.20527]
[1625242462957,2.20527,2110.9,2110.1,2.20527]
[1625242463057,2.20527,2110.9,2110.1,5.86657]
[1625242464663,4.41054,2110.9,2110.1,5.86657]
[1625242468635,2.20527,2110.5,2110.1,5.86657]
[1625242469839,2.20527,2110.5,2110.1,3.6613]
[1625242469942,2.20527,2110.5,2109.8,2.20527]
[1625242470639,2.20527,2110.5,2109.4,46.0428]
[1625242470841,2.20527,2110.5,2109.4,51.0428]
[1625242471191,2.20527,2110.5,2109.4,46.0428]
[1625242471341,2.20527,2110.5,2109.5,17.111143]
[1625242471791,2.20527,2110.9,2109.5,17.111143]
[1625242472091,2.20527,2110.9,2109.5,22.111143]
[1625242472601,2.20527,2110.9,2110.6,52.4038]
[1625242473866,14.6846,2111.7,2110.6,52.4038]
[1625242474662,2.20527,2111.4,2111.1,2.20527]
[1625242476716,2.20527,2111.2,2111.1,2.20527]
[1625242476815,2.20527,2111.2,2110.7,52.3377]
[1625242477017,2.20527,2111.2,2110.5,2.20527]
[1625242478678,2.20527,2111.2,2111.0,2.20527]
[1625242480285,1.0,2112.4,2111.0,2.20527]
[1625242480382,1.1,2112.6,2111.0,2.20527]
[1625242480684,2.20527,2111.4,2111.0,2.20527]
[1625242481034,7e-05,2111.4,2111.0,2.20527]
[1625242481585,7e-05,2111.4,2111.3,59.4297]
[1625242481935,2.20527,2111.6,2111.3,59.4297]
[1625242482738,2.20527,2111.6,2111.5,4.41054]
[1625242482838,15.3758,2112.9,2111.5,4.41054]
[1625242484698,2.20527,2112.0,2111.5,4.41054]
[1625242485147,2.20527,2112.2,2111.5,4.41054]
[1625242486752,2.20527,2112.2,2112.1,4.41054]
[1625242486849,2.20527,2112.2,2112.1,7.16054]
[1625242497954,2.20527,2112.2,2112.1,2.75]
[1625242498054,2.20527,2112.2,2111.1,3.4678]
[1625242498160,2.20527,2112.2,2110.8,14.7207]
[1625242498757,2.20527,2111.5,2111.4,2.20527]
[1625242498857,2.20527,2112.2,2111.4,2.20527]
[1625242500610,2.20527,2112.2,2111.4,5.58777]
[1625242500813,2.20527,2111.9,2111.4,5.58777]
[1625242502078,2.20527,2111.9,2111.4,2.20527]
[1625242502378,48.2421,2111.8,2111.4,2.20527]
[1625242502731,2.20527,2111.9,2110.8,14.7207]
[1625242502831,2.20527,2111.2,2110.8,14.7207]
[1625242502929,2.20527,2111.2,2110.7,2.20527]
[1625242503381,2.20527,2111.2,2110.7,42.97237]
[1625242504791,2.20527,2111.2,2111.1,2.20527]
[1625242504894,2.20527,2111.2,2111.1,4.78147]
[1625242506996,2.20527,2111.2,2111.1,2.20527]
[1625242507097,2.20527,2111.2,2110.7,2.20527]
[1625242508650,51.03437,2111.2,2110.7,2.20527]
[1625242508754,51.03437,2111.2,2109.7,1.0]
[1625242508852,2.20527,2110.2,2110.1,2.20527]
[1625242508950,4.98357,2110.2,2110.1,2.20527]
[1625242509654,61.26647,2110.2,2110.1,2.20527]
[1625242509851,4.98357,2110.2,2110.1,2.20527]
[1625242510506,4.98357,2110.2,2109.6,15.6916]
[1625242510607,4.98357,2110.2,2108.6,15.5093]
[1625242510704,4.98357,2110.2,2108.6,14.5093]
[1625242510856,2.7783,2110.2,2109.1,2.20527]
[1625242512507,0.9488,2111.1,2109.1,2.20527]
[1625242512606,1.1,2111.3,2109.1,2.20527]
[1625242512707,1.1,2111.3,2109.2,5.0]
[1625242512810,15.5462,2111.5,2109.2,5.0]
[1625242512906,15.5462,2111.5,2111.2,4.41054]
[1625242513008,15.5462,2111.5,2111.2,7.22084]
[1625242513257,1.37867527,2111.6,2111.2,7.22084]
[1625242513358,1.37867527,2111.6,2111.4,43.2778]
[1625242513658,2.20527,2111.9,2111.4,43.2778]
[1625242514711,1.38294225,2112.9,2111.4,43.2778]
[1625242514910,2.20527,2112.5,2112.4,2.20527]
[1625242515111,1.38294225,2112.9,2112.4,2.20527]
[1625242515210,1.38294225,2112.9,2112.4,4.51217]
[1625242515314,14.7488,2113.2,2112.4,4.51217]
[1625242515410,1.38316037,2113.3,2112.4,4.51217]
[1625242515513,1.38316037,2113.3,2112.5,48.5523]
[1625242515862,1.93642451,2113.4,2112.5,48.5523]
[1625242515863,1.38305205,2113.4,2112.5,48.5523]
[1625242516212,1.38286326,2113.6,2112.4,4.51217]
[1625242516862,2.20527,2112.8,2112.7,2.20527]
[1625242518867,4.41054,2112.8,2112.7,2.20527]
[1625242523183,1.38348656,2113.7,2112.7,2.20527]
[1625242523282,1.38348656,2113.7,2112.7,5.78387]
[1625242523948,1.93688118,2113.8,2112.7,5.78387]
[1625242523949,1.38372356,2113.8,2112.7,5.78387]
[1625242524908,2.20527,2113.4,2113.3,2.20527]
[1625242525005,2.20527,2113.4,2113.3,5.81007]
[1625242528956,2.20527,2113.4,2113.3,8.01534]
[1625242529458,1.38719837,2113.6,2113.3,8.01534]
[1625242529910,1.3863479,2114.2,2113.3,8.01534]
[1625242530009,1.3863479,2114.2,2113.8,53.6914]
[1625242530158,1.3863479,2114.2,2113.8,57.3618]
[1625242530259,1.38633795,2114.1,2113.8,57.3618]
[1625242530713,1.38625137,2114.3,2113.8,57.3618]
[1625242530958,3.59152137,2114.3,2114.2,4.41054]
[1625242531611,1.38625137,2114.3,2114.2,4.41054]
[1625242531712,1.38625137,2114.3,2114.2,3.29076189]
[1625242531861,2.77250274,2114.5,2114.2,3.29076189]
[1625242531862,1.38737028,2114.5,2114.2,3.29076189]
[1625242532012,1.38737028,2114.5,2112.7,3.5786]
[1625242532111,4.96147028,2114.5,2112.6,14.5488]
[1625242532325,1.38662359,2114.3,2112.6,14.5488]
[1625242532876,1.38672815,2114.1,2112.6,14.5488]
[1625242532977,2.20527,2113.9,2113.8,2.20527]
[1625242534387,2.20527,2113.9,2113.8,7e-05]
[1625242534946,4.41054,2113.9,2113.8,7e-05]
[1625242536603,55.62264,2113.9,2113.8,7e-05]
[1625242536852,55.62264,2113.9,2113.6,2.20527]
[1625242536953,55.62264,2113.9,2112.7,1.0]
[1625242537056,55.62264,2113.9,2112.6,14.5488]
[1625242537057,60.62264,2113.9,2112.6,14.5488]
[1625242537303,4.41054,2113.9,2112.6,14.5488]
[1625242537404,5.79637911,2113.9,2112.6,14.5488]
[1625242538957,2.20527,2112.7,2112.6,14.5488]
[1625242539057,2.20527,2112.7,2112.1,4.41054]
[1625242539459,5.03317,2112.7,2112.1,4.41054]
[1625242539866,5.03317,2112.7,2112.1,2.20527]
[1625242540970,4.41054,2112.2,2112.1,2.20527]
[1625242542422,4.41054,2112.2,2112.1,55.09307]
[1625242542722,4.41054,2112.2,2112.1,2.20527]
[1625242543124,1.0,2113.3,2112.1,2.20527]
[1625242543278,1.38546203,2113.7,2112.1,4.50567]
[1625242543425,1.38515307,2113.8,2112.4,52.8828]
[1625242543775,1.38497784,2113.9,2112.4,52.8828]
[1625242544082,1.38497784,2113.9,2112.1,5.50567]
[1625242544176,1.38497784,2113.9,2112.1,4.50567]
[1625242544779,5.15537784,2113.9,2112.1,4.50567]
[1625242544981,10.15537784,2113.9,2112.1,4.50567]
[1625242545134,4.41054,2112.2,2112.1,2.20527]
[1625242545282,7.85234,2112.2,2112.1,2.20527]
[1625242548860,4.41054,2112.2,2112.1,2.20527]
[1625242550522,2.20527,2112.2,2112.1,2.20527]
[1625242551219,2.20527,2112.2,2112.1,51.23807]
[1625242552320,2.20527,2112.2,2112.1,2.20527]
[1625242553820,4.72147,2112.2,2111.7,2.20527]
[1625242555123,2.20527,2111.8,2111.7,2.20527]
[1625242556526,0.89727,2111.8,2111.7,2.20527]
[1625242556626,2.1,2113.3,2111.7,2.20527]
[1625242556726,1.1,2113.3,2111.7,5.44237]
[1625242557127,2.20527,2112.8,2112.6,2.20527]
[1625242557228,2.20527,2112.8,2112.6,5.29457]
[1625242557428,2.20527,2113.0,2112.6,5.29457]
[1625242561136,2.20527,2112.7,2112.6,5.29457]
[1625242570469,2.20527,2113.0,2112.6,5.29457]
[1625242571221,2.20527,2113.0,2112.9,2.20527]
[1625242571824,2.20527,2113.4,2112.9,2.20527]
[1625242573175,2.20527,2113.0,2112.9,2.20527]
[1625242573728,2.20527,2113.4,2112.9,2.20527]
[1625242575335,4.41054,2113.4,2112.9,2.20527]
[1625242575438,4.41054,2113.4,2112.6,2.20527]
[1625242575539,6.74234,2113.4,2111.9,1.0]
[1625242575638,6.74234,2113.4,2111.7,1.3820319]
[1625242575786,58.8268,2113.0,2111.7,1.3820319]
[1625242575987,58.8268,2113.0,2111.3,1.38314193]
[1625242576438,58.8268,2113.0,2111.4,1.38275091]
[1625242576539,58.8268,2113.0,2111.4,3.94055091]
[1625242576638,58.8268,2113.0,2111.4,21.25129591]
[1625242576939,5.41054,2113.4,2111.4,21.25129591]
[1625242577041,4.41054,2113.4,2111.4,26.25129591]
[1625242577289,4.41054,2113.4,2113.3,2.20527]
[1625242577390,4.41054,2113.4,2113.1,2.20527]
[1625242577693,2.20527,2113.4,2113.1,2.20527]
[1625242577794,15.2832,2114.0,2113.1,2.20527]
[1625242579299,17.48847,2114.0,2113.7,2.20527]
[1625242579396,17.48847,2114.0,2113.1,2.20527]
[1625242579598,2.20527,2114.0,2113.1,2.20527]
[1625242581259,2.20527,2114.0,2113.7,2.20527]
[1625242581916,2.20527,2114.0,2113.7,5.56117]
[1625242583317,2.20527,2113.8,2113.7,5.56117]
[1625242587474,2.20527,2113.8,2113.7,3.3559]
[1625242587575,2.20527,2113.8,2113.1,2.20527]
[1625242589028,5.81637,2113.8,2112.1,1.0]
[1625242589130,5.81637,2113.8,2112.0,15.3227]
[1625242589377,2.20527,2112.4,2112.2,2.20527]
[1625242589927,2.20527,2112.4,2112.0,2.20527]
[1625242591280,2.20527,2112.1,2112.0,2.20527]
[1625242591379,2.20527,2112.1,2111.7,2.20527]
[1625242593095,2.20527,2112.1,2110.8,1.0]
[1625242593096,2.20527,2112.1,2110.8,2.37913873]
[1625242593198,2.20527,2112.1,2110.8,1.37913873]
[1625242593298,2.20527,2111.5,2111.2,2.20527]
[1625242593395,2.20527,2111.5,2111.2,5.79897]
[1625242594406,2.20527,2112.1,2111.2,5.79897]
[1625242595014,2.20527,2112.1,2111.3,5.0]
[1625242595164,2.20527,2112.1,2111.2,5.79897]
[1625242595270,2.20527,2112.1,2111.9,58.9357]
[1625242595365,1.63777,2112.1,2112.0,4.41054]
[1625242595516,2.20527,2112.5,2112.0,4.41054]
[1625242597370,2.20527,2112.5,2112.4,2.20527]
[1625242598276,2.20527,2112.5,2112.4,4.85847]
[1625242605190,1.39268255,2113.4,2112.4,4.85847]
[1625242605437,2.20527,2112.8,2112.4,7.06374]
[1625242607454,2.20527,2112.8,2112.7,2.20527]
[1625242607603,2.20527,2112.8,2112.4,2.20527]
[1625242610214,49.83967,2112.8,2112.4,2.20527]
[1625242610765,49.83967,2112.8,2111.9,1.38093624]
[1625242611065,2.20527,2112.8,2111.9,1.38093624]
[1625242611268,2.20527,2112.8,2111.8,1.38158396]
[1625242611417,2.20527,2112.3,2112.0,2.20527]
[1625242614228,2.20527,2112.8,2112.0,2.20527]
[1625242614882,3.14937,2112.8,2112.0,2.20527]
[1625242614981,2.20527,2112.8,2112.0,2.20527]
[1625242615435,2.20527,2112.5,2112.0,2.20527]
[1625242617335,2.20527,2112.8,2112.0,2.20527]
[1625242617485,2.20527,2112.5,2112.3,2.20527]
[1625242623502,2.20527,2112.4,2112.3,2.20527]
[1625242628375,2.20527,2112.4,2111.7,1.37925444]
[1625242628683,2.20527,2112.4,2111.5,1.37867035]
[1625242629383,49.0782,2111.7,2111.4,1.37907552]
[1625242629579,4.41054,2111.5,2111.4,3.58434552]
[1625242629681,4.41054,2111.5,2111.4,2.20527]
[1625242631033,4.41054,2111.5,2110.8,1.38058179]
[1625242631136,4.41054,2111.5,2110.7,16.99898084]
[1625242631437,4.41054,2111.5,2110.7,15.6183]
[1625242631537,2.20527,2110.9,2110.8,2.20527]
[1625242631687,4.91907,2110.9,2110.8,2.20527]
[1625242632488,2.7138,2110.9,2110.8,2.20527]
[1625242633542,7.12434,2110.9,2110.8,2.20527]
[1625242634997,7.12434,2110.9,2110.6,2.20527]
[1625242635947,7.12434,2110.9,2110.2,2.20527]
[1625242636447,12.12434,2110.9,2110.2,2.20527]
[1625242636551,7.12434,2110.9,2110.2,2.20527]
[1625242637601,4.41054,2110.3,2110.2,2.20527]
[1625242637699,6.76034,2110.3,2110.2,2.20527]
[1625242637802,6.76034,2110.3,2109.9,2.20527]
[1625242639208,6.76034,2110.3,2109.5,15.6729]
[1625242639310,6.76034,2110.3,2109.5,15.5199]
[1625242639611,4.41054,2109.6,2109.5,17.72517]
[1625242639711,4.41054,2109.6,2109.5,2.20527]
[1625242646130,2.8341,2110.0,2109.5,2.20527]
[1625242646231,1.0,2110.7,2109.5,2.20527]
[1625242646334,1.1,2111.3,2109.5,2.20527]
[1625242646432,1.0,2111.2,2109.5,2.20527]
[1625242646532,1.1,2111.2,2109.5,3.20527]
[1625242646733,0.9404,2111.7,2109.5,3.20527]
[1625242647285,2.0404,2111.7,2109.6,17.140903]
[1625242647388,2.0404,2111.7,2109.7,1.0]
[1625242647487,16.8663,2111.5,2109.7,1.0]
[1625242647638,2.20527,2110.2,2110.1,2.20527]
[1625242647787,2.20527,2110.2,2110.1,5.75657]
[1625242648088,15.8663,2111.5,2110.1,5.75657]
[1625242648839,15.8663,2111.5,2110.2,17.144078]
[1625242649088,1.0,2112.2,2110.2,17.144078]
[1625242649243,1.0,2112.2,2110.3,1.0]
[1625242649395,1.0,2112.2,2110.4,17.083957]
[1625242649488,1.0,2112.2,2110.4,18.083957]
[1625242649739,2.20527,2111.5,2111.2,2.20527]
[1625242649838,2.20527,2111.5,2111.2,5.69597]
[1625242650994,2.20527,2111.5,2111.2,3.4907]
[1625242651696,2.20527,2111.3,2111.2,3.4907]
[1625242651797,2.20527,2111.3,2110.9,2.20527]
[1625242653709,2.20527,2111.3,2111.2,2.20527]
[1625242655059,2.20527,2111.3,2110.9,2.20527]
[1625242655759,2.20527,2111.0,2110.9,2.20527]
[1625242656668,5.12817,2111.0,2110.9,2.20527]
[1625242656960,5.12817,2111.0,2110.1,1.0]
[1625242657064,5.12817,2111.0,2110.0,15.2242]
[1625242657812,2.20527,2110.1,2110.0,15.2242]
[1625242657963,2.20527,2110.3,2109.9,2.20527]
[1625242658765,2.20527,2110.3,2110.0,17.275627]
[1625242659115,1.0,2111.6,2110.0,17.275627]
[1625242659217,14.3611,2111.7,2110.0,19.569527]
[1625242659318,14.3611,2111.7,2110.0,20.569527]
[1625242659721,2.20527,2110.7,2110.6,2.20527]
[1625242662631,2.20527,2110.9,2110.6,2.20527]
[1625242665638,2.20527,2110.9,2110.6,4.61247]
[1625242666042,15.3611,2111.7,2110.6,4.61247]
[1625242666139,14.3611,2111.7,2110.6,4.61247]
[1625242667891,16.56637,2111.7,2111.6,2.20527]
[1625242668195,2.20527,2111.7,2111.6,2.20527]
[1625242668493,2.20527,2111.7,2110.6,1.0]
[1625242668590,5.90117,2111.7,2110.0,1.0]
[1625242668693,5.90117,2111.7,2109.9,15.0007]
[1625242668892,5.90117,2111.7,2109.8,5.0]
[1625242669145,5.90117,2111.7,2109.5,1.37751891]
[1625242669343,6.84007,2111.7,2109.9,17.231154]
[1625242669545,6.84007,2111.7,2109.5,1.37751891]
[1625242669644,6.84007,2111.7,2109.6,1.0]
[1625242669748,6.84007,2111.7,2110.7,2.20527]
[1625242669895,2.20527,2110.8,2110.7,2.20527]
[1625242671758,4.41054,2110.8,2110.7,2.20527]
[1625242676979,4.41054,2110.8,2110.7,5.00237]
[1625242679136,1.0,2112.2,2110.7,5.00237]
[1625242679287,1.0,2112.6,2110.7,5.00237]
[1625242679387,2.48589213,2112.8,2110.7,5.00237]
[1625242679486,2.48589213,2112.8,2110.7,6.00237]
[1625242679887,2.48589213,2112.8,2111.3,2.20527]
[1625242679987,2.48589213,2112.8,2111.3,5.89057]
[1625242680188,1.1,2112.8,2111.3,5.89057]
[1625242680937,41.2622,2112.2,2111.3,5.89057]
[1625242681038,44.8733,2112.2,2111.3,5.89057]
[1625242681388,44.8733,2112.2,2111.3,3.6853]
[1625242681493,44.8733,2112.2,2110.7,3.20527]
[1625242681639,56.2241,2111.4,2110.7,2.20527]
[1625242681838,2.20527,2110.8,2110.7,2.20527]
[1625242683966,60.45067,2110.8,2110.7,2.20527]
[1625242684574,60.45067,2110.8,2110.7,7e-05]
[1625242684666,60.45067,2110.8,2109.9,4.759]
[1625242685320,60.45067,2110.8,2109.4,19.1827]
[1625242685932,2.20527,2109.6,2109.5,2.20527]
[1625242687436,2.20527,2109.6,2108.7,6.14449324]
[1625242687688,2.20527,2109.6,2108.7,4.759]
[1625242687839,2.20527,2109.3,2108.8,2.20527]
[1625242689141,2.20527,2109.6,2108.8,2.20527]
[1625242689242,2.20527,2109.6,2108.8,4.82447]
[1625242689795,2.20527,2109.6,2108.9,17.272478]
[1625242690094,2.20527,2109.6,2108.8,4.82447]
[1625242690693,2.20527,2109.6,2108.9,17.183009]
[1625242691851,2.20527,2109.6,2109.1,2.20527]
[1625242693897,2.20527,2109.2,2109.1,2.20527]
[1625242696149,3.3466,2109.5,2109.1,2.20527]
[1625242696749,48.6013,2109.5,2109.1,2.20527]
[1625242697905,2.20527,2109.2,2109.1,2.20527]